Cogmind - Beta 10.2 @@@ ROGUE MODE // 2020.11.01 @ 22:32:45 Player: Termy Result: Destroyed by H-77 Assassin with High-powered Shotgun Performance ------------- Evolutions (6) 3000 Regions Visited (14) 2800 Robots Destroyed (70) 350 Value Destroyed (2731) 2731 Prototype IDs (17) 340 Alien Tech Used (0) 0 Bonus (1596) 1596 TOTAL SCORE: 10817 Bonus ------- High Alert Combat Kills 162 Follower Combat Kills 207 Met Warlord at Base 500 MAIN.C Attacked Warlord 500 Warlord Defense Kill 368 Friendly Fire -141 Cogmind --------- Core Integrity 0/1150 Matter 300/300 Energy 100/100 System Corruption 2% Temperature Cool (0) Movement Core (50) Location -4/Upper Caves Parts ------- > --- POWER (2) -------- (None) > --- PROPULSION (6) --- (None) > --- UTILITY (8) ------ Advanced Focal Shield > --- WEAPON (3) ------- (None) > --- INVENTORY (4) ---- Neutrino Core Antimatter Reactor Tactical Coordination Suite Lance Peak State ------------ > --- POWER ------------ Micro Fission Core Micro Fission Core > --- PROPULSION ------- Carbon-fiber Leg Gravmag Array Gravmag Array > --- UTILITY ---------- Improved Heat Sink Medium Storage Unit Advanced Visual Processing Unit Advanced Signal Interpreter Improved Transmission Jammer Improved Heavy Armor Plating > --- WEAPON ----------- Tesla Rifle Wave Gun Enhanced Gauss Cannon > --- INVENTORY -------- Micro Fission Core Carbon-fiber Leg Advanced Heat Sink Small Matter Pod Improved Terrain Scanner Improved Remote Datajack [Rating: 80] Favorites ----------- Power Micro Fission Core Engine Light Angular Momentum Engine Power Core Micro Fission Core Reactor Light Antimatter Reactor Propulsion Carbon-fiber Leg Treads Medium Treads Leg Carbon-fiber Leg Hover Unit Gravmag Array Utility Advanced Visual Processing Unit Device Improved Heat Sink Storage Medium Storage Unit Processor Advanced Visual Processing Unit Hackware Hacking Suite Protection Improved Heavy Armor Plating Weapon Enhanced Gauss Cannon Energy Gun Medium Laser Energy Cannon Advanced Beam Cannon Ballistic Gun Precision Assault Rifle Ballistic Cannon Enhanced Gauss Cannon Launcher Mini Grenade Launcher Special Weapon Plasma Cutter Slashing Weapon Great Axe Piercing Weapon Makeshift Spear Special Melee Weapon Advanced Datajack Build | -11 -10 -9 -8 -7 -7 -7 -6 -5 -5 -5 -4 -4 -4 -4 ------- Run | Scr Mat Mat Mat Fac Was Fac Fac Fac Upp War Pro Fac Upp Upp Slots Evolved 12 | . . 2 2 2 . . 2 2 . . . 2 . . Power 1 | . . . . 1 . . . . . . . . . . Propulsion 4 | . . . 1 . . . 1 1 . . . 1 . . Utility 6 | . . 2 1 1 . . . 1 . . . 1 . . Weapon 1 | . . . . . . . 1 . . . . . . . Parts Attached 148 | 5 11 13 9 13 3 2 24 20 10 18 11 6 3 . Power 18 | 1 2 2 2 1 1 . 3 2 1 2 . 1 . . Engine 7 | 1 1 2 1 . . . 2 . . . . . . . Core 10 | . 1 . 1 1 1 . 1 2 1 1 . 1 . . Reactor 1 | . . . . . . . . . . 1 . . . . Propulsion 36 | 2 1 3 2 2 1 . 6 5 1 8 3 1 1 . Treads 2 | . . . . . . . 2 . . . . . . . Leg 26 | 2 1 3 2 2 1 . 4 3 1 5 2 . . . Wheel . | . . . . . . . . . . . . . . . Hover 7 | . . . . . . . . 2 . 3 1 1 . . Flight 1 | . . . . . . . . . . . . . 1 . Utility 39 | . 4 6 1 7 . 1 7 6 2 . 3 1 1 . Device 23 | . 2 2 1 6 . . 4 5 . . 2 . 1 . Storage 3 | . 1 . . . . 1 . . 1 . . . . . Processor 7 | . . 3 . 1 . . 1 1 . . . 1 . . Hackware 1 | . . . . . . . . . . . 1 . . . Protection 5 | . 1 1 . . . . 2 . 1 . . . . . Artifact . | . . . . . . . . . . . . . . . Weapon 55 | 2 4 2 4 3 1 1 8 7 6 8 5 3 1 . Energy Gun 18 | 2 3 1 1 . . . 3 . 3 3 1 1 . . Energy Cannon 8 | . . 1 1 . . . . . . 2 3 1 . . Ballistic Gun 2 | . . . . . . . 1 1 . . . . . . Ballistic Cannon 9 | . 1 . 1 1 1 . 1 3 1 . . . . . Launcher 3 | . . . 1 2 . . . . . . . . . . Special Weapon 6 | . . . . . . . . 2 2 2 . . . . Impact Weapon . | . . . . . . . . . . . . . . . Slashing Weapon 5 | . . . . . . 1 2 1 . 1 . . . . Piercing Weapon 2 | . . . . . . . . . . . 1 . 1 . Special Melee Weapon 2 | . . . . . . . 1 . . . . 1 . . Unidentified Prototypes 5 | . . 2 . . . . 2 . . 1 . . . . Parts Lost 64 | . 1 . 1 5 5 . 6 13 5 6 15 4 3 . Power 6 | . 1 . . 2 . . 1 1 . 1 . . . . Propulsion 21 | . . . . 2 2 . 1 5 2 . 7 1 1 . Utility 18 | . . . . . 3 . 2 4 1 2 4 2 . . Weapon 19 | . . . 1 1 . . 2 3 2 3 4 1 2 . Highest Loss Streak 9 | . 1 . 1 5 5 . 4 7 3 5 9 4 2 . Average Slot Usage (%) 69 | . 95 94 99 96 64 9 55 71 82 77 50 17 7 5 Engine 3 | . 11 11 5 6 . . 4 3 . . . . . . Core 4 | . 2 . 3 5 4 . . 6 11 10 8 1 . . Leg 14 | . 28 22 27 22 14 . 9 11 5 12 12 . . . Hover 1 | . . . . . . . . 3 9 4 1 2 . . Device 13 | . 13 20 18 22 17 . 6 19 21 11 8 2 . 5 Storage 4 | . 2 11 9 7 5 7 1 . 1 5 1 . . . Processor 7 | . . 3 18 15 12 . 6 5 11 10 5 5 . . Protection 2 | . 9 3 . . . . 4 3 1 4 . . . . Energy Gun 5 | . 25 11 1 6 . . 3 1 8 2 2 . . . Energy Cannon 1 | . . 7 9 . . . . . . . 3 . . . Ballistic Cannon 2 | . 2 3 4 5 3 . 1 5 4 3 . . . . Special Weapon 1 | . . . . . . . . 3 1 4 . . . . Slashing Weapon 1 | . . . . . . 1 4 1 . . 2 . . . Naked Turns 90 | . . . . . 20 5 . . . . . 24 41 . Heaviest Build 58 | 8 20 25 27 37 23 5 43 43 50 58 42 10 3 3 Greatest Support 90 | 20 20 20 37 47 30 3 61 66 65 90 85 3 3 3 Greatest Overweight (x) 3 | . . 1 . . 3 1 1 2 1 2 2 3 . . Average Overweight (x) . | . . . . . . . . . . . . . . . Largest Inventory Capacity 8 | 4 8 8 8 8 8 4 4 4 8 8 8 4 4 4 Average Capacity 5 | 4 4 8 8 8 7 4 4 4 5 8 5 4 4 4 Most Carried 8 | 3 5 8 8 8 7 4 4 4 8 8 7 4 4 4 Average Carried 4 | 1 3 6 7 7 5 3 3 3 4 7 3 1 1 4 Final Capacity 8 | 4 8 8 8 8 4 4 4 4 8 8 4 4 4 4 Final Carried 8 | 2 5 8 8 7 4 4 4 4 7 7 4 1 4 4 Class Distribution -------------------- 50% | Mutant 32% | Scavenger-Mutant 6% | Skirmisher 5% | Scavenger-Skirmisher Dominant Class ---------------- Mutant | -10/Materials Mutant | -9/Materials Scavenger-Skirmisher | -8/Materials Skirmisher | -7/Factory Mutant | -7/Waste Mutant | -7/Factory Mutant | -6/Factory Mutant | -5/Factory Scavenger-Mutant | -5/Upper Caves Scavenger-Mutant | -5/Warlord Scavenger-Mutant | -4/Proximity Caves Mutant | -4/Factory Mutant | -4/Upper Caves Mutant | -4/Upper Caves Resources | -11 -10 -9 -8 -7 -7 -7 -6 -5 -5 -5 -4 -4 -4 -4 ----------- Run | Scr Mat Mat Mat Fac Was Fac Fac Fac Upp War Pro Fac Upp Upp Matter Collected 2218 | 250 105 162 99 58 . . 411 298 479 180 107 . 69 . Remotely . | . . . . . . . . . . . . . . . Salvage Created 2151 | 40 121 383 135 221 . . 151 308 450 170 61 . 111 . Parts 125 | 1 13 27 3 12 . . 8 31 17 8 1 . 4 . Haulers Intercepted . | . . . . . . . . . . . . . . . Recyclers Shooed . | . . . . . . . . . . . . . . . Parts Field Recycled . | . . . . . . . . . . . . . . . Retrieved Matter . | . . . . . . . . . . . . . . . Parts Self-Destructed 74 | . . . . . . . . . 8 64 . . 2 . Prevented 13 | . . . . . . . . . 4 9 . . . . Kills | -11 -10 -9 -8 -7 -7 -7 -6 -5 -5 -5 -4 -4 -4 -4 ------- Run | Scr Mat Mat Mat Fac Was Fac Fac Fac Upp War Pro Fac Upp Upp Combat Hostiles Destroyed 57 | 1 5 7 3 5 . . 3 15 11 3 3 . 1 . Melee 4 | . . . . . . . 2 . . . 1 . 1 . Guns 20 | 1 4 5 . 1 . . 1 . 7 1 . . . . Cannons 18 | . 1 2 2 . . . . 7 4 . 2 . . . AOE 15 | . . . 1 4 . . . 8 . 2 . . . . Classes Destroyed 10 | 1 1 3 . 1 . . . 4 . . . . . . Worker 5 | . . . . . . . . 5 . . . . . . Builder 3 | . . . . . . . . 3 . . . . . . Operator 1 | . . . . 1 . . . . . . . . . . Watcher 4 | . . 2 1 . . . . 1 . . . . . . Swarmer 19 | . 3 . . . . . 1 8 6 . . . 1 . Grunt 26 | 1 2 5 3 4 . . 2 4 2 3 . . . . Duelist 1 | . . 1 . . . . . . . . . . . . Sentry 4 | . . 1 . 1 . . . . 1 . 1 . . . Hunter 1 | . . . . . . . . 1 . . . . . . Programmer 6 | . . . . . . . . 2 2 . 2 . . . Best Kill Streak 16 | 1 3 3 4 3 . . 2 16 5 3 2 . 1 . Combat Bots Only 9 | 1 3 3 3 3 . . 2 9 5 3 2 . 1 . Max Kills in Single Turn 15 | 1 1 1 2 2 . . 1 15 1 2 1 . 1 . Gunslinging . | . . . . . . . . . . . . . . . Exploded 8 | . . . 1 2 . . . 8 . 2 . . . . Melee 1 | . . . . . . . 1 . . . 1 . 1 . Uniques/NPCs Destroyed . | . . . . . . . . . . . . . . . Combat | -11 -10 -9 -8 -7 -7 -7 -6 -5 -5 -5 -4 -4 -4 -4 -------- Run | Scr Mat Mat Mat Fac Was Fac Fac Fac Upp War Pro Fac Upp Upp Damage Taken 9453 | 74 282 149 314 796 260 35 840 2126 773 828 1418 843 650 65 Core 2624 | . 30 26 53 211 175 35 132 156 36 39 580 516 570 65 Absorbed by Shields 93 | . . . . 90 . . 3 . . . . . . . Core Remaining (%) 73 | 100 88 93 90 . . 39 84 . . . 18 . . . Volleys Fired 175 | 4 17 15 17 16 7 . 10 37 28 6 11 7 . . Largest 3 | 2 2 2 2 2 1 . 2 2 3 2 2 1 . . Hottest 203 | 90 115 124 143 85 35 . 97 128 203 145 191 100 . . Shots Fired 299 | 8 34 30 32 27 7 . 18 58 49 12 17 7 . . Gun 140 | 8 27 15 . 16 . . 18 6 30 10 6 4 . . Cannon 134 | . 7 15 31 7 4 . . 46 10 . 11 3 . . Launcher 8 | . . . 1 4 3 . . . . . . . . . Special 17 | . . . . . . . . 6 9 2 . . . . Kinetic 91 | . 7 1 6 7 4 . 10 46 10 . . . . . Thermal 138 | 8 27 29 25 . . . 8 6 21 6 8 . . . Explosive 8 | . . . 1 4 3 . . . . . . . . . Electromagnetic 43 | . . . . 16 . . . . 17 6 . 4 . . Entropic 12 | . . . . . . . . . . . 9 3 . . Robot Hit Streak 14 | 6 2 8 9 3 7 . 5 6 13 14 6 3 . . Robot Miss Streak 11 | 2 4 1 8 2 2 . 5 11 5 3 7 1 . . Penetration Max . | . . . . . . . . . . . . . . . Secondary Targets 1 | . . . . . . . . . 1 . . . . . Max Gunslinging Chain 1 | . . . . . . . . . 1 . . . . . Shots Hit Robots 216 | 6 11 20 15 11 5 3 25 46 30 10 20 6 8 . Core Hits 134 | 2 8 11 9 15 1 . 4 38 20 16 7 1 2 . Critical Hits 5 | . . . 1 . . 1 1 . 2 . . . . . Critical Kills 3 | . . . 1 . . . . . 2 . . . . . Critical Parts Destroyed 2 | . . . . . . 1 1 . . . . . . . Melee Attacks 55 | . . . . . . 3 22 1 . 2 18 1 8 . Impact . | . . . . . . . . . . . . . . . Slashing 29 | . . . . . . 3 14 1 . 2 9 . . . Piercing 14 | . . . . . . . . . . . 9 . 5 . Sneak Attacks 8 | . . . . . . . 6 . . . . . 2 . Combat Hostiles 2 | . . . . . . . 2 . . . . . . . Follow-up Attacks . | . . . . . . . . . . . . . . . Damage Inflicted 8491 | 71 131 333 490 590 449 106 462 2804 769 947 907 238 194 . Guns 1570 | 71 111 230 . 154 . . 139 75 451 189 89 61 . . Cannons 2278 | . 20 103 352 53 71 . . 753 274 . 485 167 . . Explosions 3576 | . . . 138 383 378 . . 1976 . 701 . . . . Melee 992 | . . . . . . 106 323 . . 36 333 . 194 . Ramming 10 | . . . . . . . . . . . . 10 . . Kinetic 1347 | . 20 . 94 53 71 . 82 753 274 . . . . . Thermal 3992 | 71 111 333 258 . . . 57 2051 213 809 89 . . . Explosive 858 | . . . 138 342 378 . . . . . . . . . Electromagnetic 640 | . . . . 195 . . . . 282 102 . 61 . . Impact . | . . . . . . . . . . . . . . . Slashing 663 | . . . . . . 106 323 . . 36 198 . . . Piercing 329 | . . . . . . . . . . . 135 . 194 . Entropic 652 | . . . . . . . . . . . 485 167 . . Highest Corruption 17 | . . . . . 15 17 . 2 3 3 10 2 2 2 Average Corruption 4 | . . . . . 7 16 . 1 2 3 6 2 2 2 Corruption Purged . | . . . . . . . . . . . . . . . Effects 43 | . . . . . 8 6 . 3 4 2 12 1 6 1 Message Errors 10 | . . . . . 1 1 . 1 2 . 1 . 3 1 Matter Fused 6 | . . . . . 2 . . . 1 . 3 . . . Heat Flow Errors 5 | . . . . . . . . 1 . 2 1 1 . . Energy Discharges 6 | . . . . . 1 2 . . . . 2 . 1 . Data Loss (minor) 7 | . . . . . 2 . . 1 1 . 2 . 1 . Data Loss (major) 1 | . . . . . . . . . . . 1 . . . Misfires 1 | . . . . . . . . . . . 1 . . . Misdirections 5 | . . . . . 2 2 . . . . 1 . . . Targeting Errors 2 | . . . . . . 1 . . . . . . 1 . Overload Shots . | . . . . . . . . . . . . . . . Overflow Damage 528 | . . . 15 . . . . 425 42 . 43 . 3 . Projectiles 162 | . . . 11 . . . . 66 42 . 43 . . . Explosions 363 | . . . 4 . . . . 359 . . . . . . Melee 3 | . . . . . . . . . . . . . 3 . Knockbacks 16 | . . . 2 . . . . 13 1 . . . . . Impact . | . . . . . . . . . . . . . . . Kinetic 15 | . . . 2 . . . . 12 1 . . . . . Secondary 1 | . . . . . . . . 1 . . . . . . Self-Inflicted Damage 339 | . . . 11 94 11 . . 183 . 36 . 4 . . Shots 10 | . . . 1 4 1 . . 3 . 1 . . . . Rammed 3 | . . . . . . . . . . . . 3 . . Targets Rammed 3 | . . . . . . . . . . . . 3 . . Kicked . | . . . . . . . . . . . . . . . Crushed . | . . . . . . . . . . . . . . . Highest Temperature 246 | 48 30 108 81 5 . . . 55 189 246 236 116 . . Average Temperature 53 | 26 9 36 41 4 . . . 17 81 83 86 55 . . Received Heat Transfer 1602 | 42 33 66 171 263 . 18 313 90 144 318 63 9 72 . Siege Activations . | . . . . . . . . . . . . . . . Robots Corrupted . | . . . . . . . . . . . . . . . Combat Hostiles . | . . . . . . . . . . . . . . . Parts Fried 1 | . . . . 1 . . . . . . . . . . Impact Corruptions . | . . . . . . . . . . . . . . . Robots Melted . | . . . . . . . . . . . . . . . Combat Hostiles . | . . . . . . . . . . . . . . . Parts Melted 7 | 2 1 1 . . . . 1 1 1 . . . . . Heat Transferred 4299 | 186 309 703 407 . . . 111 1415 324 733 111 . . . Parts Sabotaged . | . . . . . . . . . . . . . . . Parts Stolen . | . . . . . . . . . . . . . . . Parts Stripped . | . . . . . . . . . . . . . . . Power Chain Reactions 2 | . . . . 1 . . . . . 1 . . . . Missiles Intercepted . | . . . . . . . . . . . . . . . Alert | -11 -10 -9 -8 -7 -7 -7 -6 -5 -5 -5 -4 -4 -4 -4 ------- Run | Scr Mat Mat Mat Fac Was Fac Fac Fac Upp War Pro Fac Upp Upp Peak Influence 575 | 20 98 202 256 235 29 30 224 575 . . . 113 . . Initial 85 | . 13 31 85 25 22 . 14 . . . . 59 . . Average 115 | 1 35 60 139 90 15 23 66 396 . . . 84 . . Maximum Alert Level 2 | . . 1 1 1 . . 1 2 . . . . . . Low Security (%) 84 | 100 100 95 78 92 100 100 97 21 . . . 100 . . Level 1 5 | . . 4 21 7 . . 2 2 . . . . . . Level 2 10 | . . . . . . . . 76 . . . . . . Level 3 . | . . . . . . . . . . . . . . . Level 4 . | . . . . . . . . . . . . . . . Level 5 . | . . . . . . . . . . . . . . . High Security . | . . . . . . . . . . . . . . . Max Security . | . . . . . . . . . . . . . . . Squads Dispatched 11 | . 2 1 . 4 . 1 2 1 . . . . . . Investigation 2 | . . 1 . 1 . . . . . . . . . . Extermination 1 | . . . . . . . . 1 . . . . . . Reinforcement 6 | . 2 . . 1 . 1 2 . . . . . . . Assault . | . . . . . . . . . . . . . . . Garrison 2 | . . . . 2 . . . . . . . . . . Intercept . | . . . . . . . . . . . . . . . Construction Impeded 1 | . . . . . . . 1 . . . . . . . Haulers Reinforced . | . . . . . . . . . . . . . . . Stealth | -11 -10 -9 -8 -7 -7 -7 -6 -5 -5 -5 -4 -4 -4 -4 --------- Run | Scr Mat Mat Mat Fac Was Fac Fac Fac Upp War Pro Fac Upp Upp Distress Signals 3 | . . 1 1 . . . . . . 1 . . . . Communications Jammed 112 | . . . . . . . . 1 . 111 . . . . Distress Signals 112 | . . . . . . . . 1 . 111 . . . . Times Spotted 151 | 1 13 9 8 14 6 5 14 22 13 19 12 7 6 2 Peak Tracking Total 12 | 1 4 3 5 4 6 4 6 10 5 12 5 5 3 2 Tactical Retreats 21 | . 2 1 . 4 . . 1 1 1 1 4 3 3 . Traps | -11 -10 -9 -8 -7 -7 -7 -6 -5 -5 -5 -4 -4 -4 -4 ------- Run | Scr Mat Mat Mat Fac Was Fac Fac Fac Upp War Pro Fac Upp Upp Traps Triggered 6 | . . 1 . 2 . 1 . . . . . 2 . . Indirectly . | . . . . . . . . . . . . . . . Trap Hack Attempts . | . . . . . . . . . . . . . . . Triggered . | . . . . . . . . . . . . . . . Disarmed . | . . . . . . . . . . . . . . . Reprogrammed . | . . . . . . . . . . . . . . . Reused . | . . . . . . . . . . . . . . . Traps Extracted . | . . . . . . . . . . . . . . . Installed . | . . . . . . . . . . . . . . . Triggered 17 | . . . . . . . . . 2 14 . 1 . . Machines | -11 -10 -9 -8 -7 -7 -7 -6 -5 -5 -5 -4 -4 -4 -4 ---------- Run | Scr Mat Mat Mat Fac Was Fac Fac Fac Upp War Pro Fac Upp Upp Machines Disabled 17 | . . 1 1 1 . . 1 12 1 . . . . . Max in Single Turn 12 | . . 1 1 1 . . 1 12 1 . . . . . Machines Sabotaged . | . . . . . . . . . . . . . . . Garrisons Compromised . | . . . . . . . . . . . . . . . Overloaded Fab Kills . | . . . . . . . . . . . . . . . Fab Network Shutdowns . | . . . . . . . . . . . . . . . Hacking | -11 -10 -9 -8 -7 -7 -7 -6 -5 -5 -5 -4 -4 -4 -4 --------- Run | Scr Mat Mat Mat Fac Was Fac Fac Fac Upp War Pro Fac Upp Upp Machines Accessed 26 | . 3 2 3 2 . . 5 2 1 7 . 1 . . Terminals 12 | . 2 2 2 2 . . 3 1 . . . . . . Fabricators 1 | . . . . . . . . 1 . . . . . . Repair Stations 2 | . . . . . . . 1 . . . . 1 . . Recycling Units 2 | . 1 . . . . . 1 . . . . . . . Scanalyzers 1 | . . . 1 . . . . . . . . . . . Garrison Access . | . . . . . . . . . . . . . . . Total Hacks 64 | . 8 4 9 4 . . 11 4 1 21 . 2 . . Successful 49 | . 5 2 7 3 . . 6 2 1 21 . 2 . . Failed 15 | . 3 2 2 1 . . 5 2 . . . . . . Catastrophic . | . . . . . . . . . . . . . . . Database Lockouts . | . . . . . . . . . . . . . . . Manual 7 | . 4 . . . . . . 2 . 1 . . . . Terminals 31 | . 7 4 7 4 . . 7 2 . . . . . . Fabricators 2 | . . . . . . . . 2 . . . . . . Repair Stations 4 | . . . . . . . 2 . . . . 2 . . Recycling Units 3 | . 1 . . . . . 2 . . . . . . . Scanalyzers 2 | . . . 2 . . . . . . . . . . . Garrison Access . | . . . . . . . . . . . . . . . Terminal Hacks 41 | . 4 2 5 3 . . 4 1 1 21 . . . . Record 20 | . 1 1 1 1 . . . 1 . 15 . . . . Prototype ID Bank 6 | . 1 . . . . . . . . 5 . . . . Open Door 2 | . . . . . . . . . 1 1 . . . . Emergency Access Points 6 | . 1 1 2 1 . . 1 . . . . . . . Alert Level 2 | . . . 1 1 . . . . . . . . . . Unreport Threat 1 | . . . . . . . 1 . . . . . . . Locate Traps 1 | . . . . . . . 1 . . . . . . . Recall Investigation 1 | . . . . . . . 1 . . . . . . . Hauler Manifests 1 | . 1 . . . . . . . . . . . . . Zone Layout 1 | . . . 1 . . . . . . . . . . . Fabricator Hacks 1 | . . . . . . . . 1 . . . . . . Load Schematic 1 | . . . . . . . . 1 . . . . . . Repair Station Hacks 3 | . . . . . . . 1 . . . . 2 . . Scan Component 2 | . . . . . . . 1 . . . . 1 . . Repair 1 | . . . . . . . . . . . . 1 . . Recycling Unit Hacks 2 | . 1 . . . . . 1 . . . . . . . Report Inventory 1 | . 1 . . . . . . . . . . . . . Retrieve Matter 1 | . . . . . . . 1 . . . . . . . Scanalyzer 2 | . . . 2 . . . . . . . . . . . Insert Component 1 | . . . 1 . . . . . . . . . . . Analyze 1 | . . . 1 . . . . . . . . . . . Garrison Access Hacks . | . . . . . . . . . . . . . . . Unauthorized Hacks . | . . . . . . . . . . . . . . . Terminals . | . . . . . . . . . . . . . . . Fabricators . | . . . . . . . . . . . . . . . Repair Stations . | . . . . . . . . . . . . . . . Recycling Units . | . . . . . . . . . . . . . . . Scanalyzers . | . . . . . . . . . . . . . . . Garrison Access . | . . . . . . . . . . . . . . . Data Cores Recovered . | . . . . . . . . . . . . . . . Used . | . . . . . . . . . . . . . . . Hacking Detections 15 | . 2 2 2 2 . . 5 2 . . . . . . Full Trace Events . | . . . . . . . . . . . . . . . Feedback Events . | . . . . . . . . . . . . . . . Feedback Blocked . | . . . . . . . . . . . . . . . Robot Schematics Acquired . | . . . . . . . . . . . . . . . Robots Built . | . . . . . . . . . . . . . . . Matter . | . . . . . . . . . . . . . . . Time . | . . . . . . . . . . . . . . . Total Robot Build Rating . | . . . . . . . . . . . . . . . Part Schematics Acquired 1 | . . . 1 . . . . . . . . . . . Parts Built . | . . . . . . . . . . . . . . . Matter . | . . . . . . . . . . . . . . . Time . | . . . . . . . . . . . . . . . Total Part Build Rating . | . . . . . . . . . . . . . . . Parts Repaired 1 | . . . . . . . . . . . . 1 . . Time 56 | . . . . . . . . . . . . 56 . . Parts Recycled . | . . . . . . . . . . . . . . . Recycled Matter . | . . . . . . . . . . . . . . . Retrieved Matter . | . . . . . . . . . . . . . . . Retrieved Components . | . . . . . . . . . . . . . . . Parts Scanalyzed 1 | . . . 1 . . . . . . . . . . . Part Schematics Acquired 1 | . . . 1 . . . . . . . . . . . Parts Damaged . | . . . . . . . . . . . . . . . Bothacking | -11 -10 -9 -8 -7 -7 -7 -6 -5 -5 -5 -4 -4 -4 -4 ------------ Run | Scr Mat Mat Mat Fac Was Fac Fac Fac Upp War Pro Fac Upp Upp Used RIF Installer . | . . . . . . . . . . . . . . . Robots Hacked 7 | . . . . . . . 4 . . . . 1 2 . Non-combat 4 | . . . . . . . 2 . . . . . 2 . Combat 3 | . . . . . . . 2 . . . . 1 . . Robot Hacks Applied 8 | . . . . . . . 5 . . . . 1 2 . parse_system 7 | . . . . . . . 4 . . . . 1 2 . find_chute 1 | . . . . . . . 1 . . . . . . . Relay Couplers Released . | . . . . . . . . . . . . . . . Robots Rewired 2 | . . . . . . . 2 . . . . . . . Allies Hacked . | . . . . . . . . . . . . . . . Hacks Repelled . | . . . . . . . . . . . . . . . Allies | -11 -10 -9 -8 -7 -7 -7 -6 -5 -5 -5 -4 -4 -4 -4 -------- Run | Scr Mat Mat Mat Fac Was Fac Fac Fac Upp War Pro Fac Upp Upp Total Allies 3 | . . . . . 1 . 2 . . . . . . . Largest Group 2 | . . . . . 1 . 2 . . . . . . . Highest-Rated Group 61 | . . . . . 31 . 61 . . . . . . . Highest-Rated Ally 32 | . . . . . 31 . 32 . . . . . . . Total Orders 2 | . . . . . . . 2 . . . . . . . ROAM 1 | . . . . . . . 1 . . . . . . . FOLLOW 1 | . . . . . . . 1 . . . . . . . Ally Attacks 40 | . . . . . 9 . 31 . . . . . . . Total Damage 770 | . . . . . 126 . 644 . . . . . . . Kills 6 | . . . . . . . 6 . . . . . . . Allies Corrupted . | . . . . . . . . . . . . . . . Allies Melted 1 | . . . . . . . . . . 1 . . . . Intel | -11 -10 -9 -8 -7 -7 -7 -6 -5 -5 -5 -4 -4 -4 -4 ------- Run | Scr Mat Mat Mat Fac Was Fac Fac Fac Upp War Pro Fac Upp Upp Robot Analysis Total . | . . . . . . . . . . . . . . . Derelict Logs Recovered 4 | . . . . . . . . . 1 . 1 . 2 . Drone Launches . | . . . . . . . . . . . . . . . Drone Recoveries . | . . . . . . . . . . . . . . . Exploration | -11 -10 -9 -8 -7 -7 -7 -6 -5 -5 -5 -4 -4 -4 -4 ------------- Run | Scr Mat Mat Mat Fac Was Fac Fac Fac Upp War Pro Fac Upp Upp Turns Passed 6299 | 95 472 599 512 455 157 83 751 514 373 1010 617 134 510 17 Spaces Moved 5450 | 70 313 386 337 288 137 112 539 358 368 807 555 195 962 23 Core 1740 | 18 . . . . 50 112 149 . . . 231 195 962 23 Treads 114 | . . . . . . . 114 . . . . . . . Legs 2651 | 52 313 386 337 288 87 . 276 224 22 481 185 . . . Wheels . | . . . . . . . . . . . . . . . Hover 945 | . . . . . . . . 134 346 326 139 . . . Flight . | . . . . . . . . . . . . . . . Fastest Speed 50 | 50 120 120 120 120 50 50 50 56 66 72 50 50 50 50 Average Speed 95 | 102 120 120 122 124 99 52 113 104 71 116 94 55 50 50 Slowest Speed 220 | 120 120 150 123 126 200 100 160 180 150 220 180 200 50 50 Overloaded Moves . | . . . . . . . . . . . . . . . Propulsion Burnouts . | . . . . . . . . . . . . . . . Robots Hopped . | . . . . . . . . . . . . . . . Cave-ins Triggered . | . . . . . . . . . . . . . . . Exploration Rate (%) 35 | 5 36 36 30 9 79 5 20 10 45 90 70 5 80 8 Regions Visited 14 Branch Regions 5 Pre-discovered Areas 2 | . . . . . . . . . . . 1 . 1 . Known Exits Taken 7 | . . 1 1 . . . . 1 1 1 1 . 1 . Unknown Exits Taken 5 | 1 1 . . . . 1 1 . . . . 1 . . Scrap Searched 6 | . . . . . . . . . 1 . 2 . 3 . Spaces Dug 2 | . . . . . . . 2 . . . . . . . Terrain Destroyed 136 | . . . 14 11 19 . 2 65 4 5 14 2 . . Melee 2 | . . . . . . . 2 . . . . . . . Projectile 36 | . . . 6 . . . . 10 4 . 14 2 . . AOE 98 | . . . 8 11 19 . . 55 . 5 . . . . Terrain Rammed . | . . . . . . . . . . . . . . . Walls Destroyed . | . . . . . . . . . . . . . . . Machines Disabled . | . . . . . . . . . . . . . . . Actions | -11 -10 -9 -8 -7 -7 -7 -6 -5 -5 -5 -4 -4 -4 -4 --------- Run | Scr Mat Mat Mat Fac Was Fac Fac Fac Upp War Pro Fac Upp Upp Total 6172 | 85 376 494 405 353 150 130 626 436 428 857 610 211 983 28 Wait 224 | . 21 60 34 31 . 13 17 12 7 11 5 . 8 5 Move 5437 | 69 312 385 336 288 136 111 538 357 367 806 554 194 961 23 Hop . | . . . . . . . . . . . . . . . Pick Up 55 | 7 8 6 3 2 1 1 5 4 9 2 4 . 3 . Fast Attach 68 | . 2 6 2 1 1 1 19 11 2 12 4 4 3 . Attach 49 | 5 5 3 5 3 2 1 5 6 4 2 6 2 . . Detach 23 | . 2 4 3 1 2 . 4 2 1 2 2 . . . Swap 31 | . 4 4 2 9 . . . 3 4 4 1 . . . Drop 48 | . 5 11 3 2 1 . 5 3 5 10 3 . . . Fire 175 | 4 17 15 17 16 7 . 10 37 28 6 11 7 . . Melee 55 | . . . . . . 3 22 1 . 2 18 1 8 . Ram 3 | . . . . . . . . . . . . 3 . . Kick . | . . . . . . . . . . . . . . . Crush . | . . . . . . . . . . . . . . . Escape Stasis . | . . . . . . . . . . . . . . . Rewire 4 | . . . . . . . 1 . 1 . 2 . . . Trap . | . . . . . . . . . . . . . . . Miscellaneous . | . . . . . . . . . . . . . . . Route ------- -11/Scrapyard -10/Materials -9/Materials -8/Materials -7/Factory -7/Waste -7/Factory -6/Factory -5/Factory -5/Upper Caves (discovered 2 exits: Upp / *War) -5/Warlord -4/Proximity Caves -4/Factory -4/Upper Caves -4/Upper Caves (discovered 1 exit: [*Res]) History --------- Turn | Location | Event 2 | -11/Scrapyard | Met Revision 17 67 | -11/Scrapyard | Discovered new exit (range 8) 96 | -11/Scrapyard | Entered Materials 305 | -10/Materials | Build established: Mutant 562 | -10/Materials | Discovered new exit (range 5) 568 | -10/Materials | Entered another Materials area 568 | -9/Materials | Evolved 2 slots: Utility x2 1120 | -9/Materials | Discovered new exit (range 19) 1150 | -9/Materials | Identified exit to Materials 1167 | -9/Materials | Entered another Materials area 1167 | -8/Materials | Evolved 2 slots: Propulsion x1, Utility x1 1599 | -8/Materials | Discovered new exit (range 11) 1610 | -8/Materials | Identified exit to Factory 1679 | -8/Materials | Entered Factory 1679 | -7/Factory | Evolved 2 slots: Power x1, Utility x1 1945 | -7/Factory | Garrison activated, responded to threat 2132 | -7/Factory | Lost 5 parts (2p2n1w) 2134 | -7/Factory | Sucked down chute 2134 | -7/Factory | Entered Waste 2135 | -7/Waste | Met a frightened Derelict 2149 | -7/Waste | EMP discharged 2151 | -7/Waste | Spotted C-40 Crusher 2160 | -7/Waste | Spotted C-40 Crusher 2208 | -7/Waste | Spotted C-40 Crusher 2208 | -7/Waste | Spotted C-40 Crusher 2249 | -7/Waste | EMP discharged 2249 | -7/Waste | System corruption reached 10% 2257 | -7/Waste | Crushed by Compactor (1 part destroyed, 2 dropped) 2257 | -7/Waste | Crushed by Compactor (1 part destroyed, 1 dropped) 2259 | -7/Waste | Spotted C-40 Crusher 2269 | -7/Waste | Crushed by Compactor (1 part destroyed, 2 dropped) 2269 | -7/Waste | Spotted C-40 Crusher 2271 | -7/Waste | Crushed by Compactor (1 part destroyed) 2274 | -7/Waste | Core integrity fell below 50% 2285 | -7/Waste | Discovered new exit (range 12) 2291 | -7/Waste | Entered Factory 2302 | -7/Factory | Lost 5 parts (2n3u) 2371 | -7/Factory | Discovered new exit (range 3) 2374 | -7/Factory | Entered another Factory area 2374 | -6/Factory | Evolved 2 slots: Propulsion x1, Weapon x1 2898 | -6/Factory | Lost 4 parts (1p1n1u1w) 3055 | -6/Factory | Discovered new exit (range 13) 3125 | -6/Factory | Entered another Factory area 3125 | -5/Factory | Evolved 2 slots: Propulsion x1, Utility x1 3189 | -5/Factory | Build established: Scavenger-Mutant 3266 | -5/Factory | Lost 3 parts (1n2u) 3272 | -5/Factory | Destroyed 9 combat bots 3372 | -5/Factory | Lost 7 parts (3n2u2w) 3631 | -5/Factory | Discovered new exit (range 7) 3634 | -5/Factory | Identified exit to Upper Caves 3639 | -5/Factory | Entered Upper Caves 3650 | -5/Upper Caves | Identified exit to Upper Caves 3831 | -5/Upper Caves | Spotted B-75 Beast 3929 | -5/Upper Caves | Attracted the attention of an 0b10 checkpoint 4000 | -5/Upper Caves | Lost 3 parts (2n1w) 4002 | -5/Upper Caves | A Derelict revealed a hidden shortcut to "reach the base" 4010 | -5/Upper Caves | Identified exit to Warlord 4012 | -5/Upper Caves | Entered Warlord 4054 | -5/Warlord | Discovered new exit (range 9) 4065 | -5/Warlord | Identified exit to Proximity Caves 4151 | -5/Warlord | System corruption cleaned by Quarantine Array 4468 | -5/Warlord | Met Warlord 4493 | -5/Warlord | Warlord's base attacked by MAIN.C 4753 | -5/Warlord | Found Prototype Energy Cannon 4753 | -5/Warlord | Identified Vortex Driver 4756 | -5/Warlord | Found Vortex Driver 4843 | -5/Warlord | Warlord forces counterattacked 4898 | -5/Warlord | Spotted Executioner 4961 | -5/Warlord | Spotted Striker 5008 | -5/Warlord | Spotted B-86 Titan 5022 | -5/Warlord | Entered Proximity Caves 5040 | -4/Proximity Caves | Lost 5 parts (1p2u2w) 5314 | -4/Proximity Caves | Attracted the attention of an 0b10 checkpoint 5315 | -4/Proximity Caves | Lost 9 parts (5n2u2w) 5350 | -4/Proximity Caves | Learned location of Quarantine (-3) 5404 | -4/Proximity Caves | Lost 4 parts (1n2u1w) 5511 | -4/Proximity Caves | Core integrity fell below 50% 5574 | -4/Proximity Caves | System corruption reached 10% 5625 | -4/Proximity Caves | Core integrity fell below 20% 5630 | -4/Proximity Caves | Discovered new exit (range 15) 5638 | -4/Proximity Caves | Identified exit to Factory 5639 | -4/Proximity Caves | Entered Factory 5639 | -4/Factory | Evolved 2 slots: Propulsion x1, Utility x1 5663 | -4/Factory | Build established: Mutant 5693 | -4/Factory | Discovered new exit (range 14) 5704 | -4/Factory | Repaired Mic. Fission Core? 5768 | -4/Factory | Lost 4 parts (1n2u1w) 5773 | -4/Factory | Entered Upper Caves 6080 | -4/Upper Caves | Attracted the attention of an 0b10 checkpoint 6083 | -4/Upper Caves | Core integrity fell below 50% 6203 | -4/Upper Caves | Core integrity fell below 20% 6238 | -4/Upper Caves | Learned location of Armory (-3) 6266 | -4/Upper Caves | Identified exit to Upper Caves 6283 | -4/Upper Caves | Entered another Upper Caves area 6292 | -4/Upper Caves | Discovered new exit (range 7) 6300 | -4/Upper Caves | Destroyed by H-77 Assassin with High-powered Shotgun Last Messages --------------- 06238_ Found 16 Matter. 06239_ Acquired Adv. Focal Shield. 06242_ Acquired Lance. 06243_ Acquired 10 matter. 06256_ Searching scrap... 06256_ Found Humpback. 06256_ Found Adv. ECM Suite. 06256_ Found Com. Matter Pod. 06256_ Found Imp. Thermal Generator. 06256_ Found 20 Matter. 06260_ H,YA#ONYKR3B5 06300_ Penetrated by Slug. [Achievement: 10k Club] Map ----- +----------------------------------------------------+ | ?????????????????????????????????????????????????? | | ?????????????????????????????????????????????????? | | ???????????????????????????? ???????????? ? #???? | | ??????????????????????????? #?????????? #???? | | ???????????????????????????? ?????????? #???? | | ????????????????????????????? ????????? #???? | | ?????????????????????????????? ##??????? #???? | | ??????????????????????????????# ##????? #???? | | ??????????????????????????????# #???# #???? | | ?????????????????????????###### ### #???? | | ?????????????????????????? #???? | | ?????????????????????????? #????? | | ????????????????????????""" " #????? | | ??????????????????????? """"""" ## ##???? | | ????????????????? """"""" #?# #???? | | ???????????????? """ " #?### ####???? | | ???????????????? #???## ##??????? | | ???????????????? ###### ##??????? | | ???????????????? ######## ###????? | | ???????????????????????????????# #????? | | ???????????????????????????????# #### #????? | | ???????????????????????????????# #??## #???? | | ??????????????????#????##??????# #???? #???? | | ?????????????????## ###h####### #???? #???? | | ?????????????????#